[Event "15th Tashkent Open Agzamov 2022"]
[Site "Tashkent"]
[Date "2022.05.09"]
[Round "8.10"]
[White "Van Foreest, Lucas"]
[Black "Manafov, Vugar"]
[Result "1/2-1/2"]
[ECO "E32"]
[WhiteElo "2572"]
[BlackElo "2311"]
[Annotator "TA"]
[PlyCount "115"]
[EventDate "2022.05.05"]
[EventType "swiss"]
[EventCountry "UZB"]
[SourceTitle "playchess.com"]
[Source "ChessBase"]
[SourceQuality "1"]
[TimeControl "5400+30"]

{[%evp 13,115,0,0,0,0,0,0,0,12,4,7,9,0,14,0,0,0,0,0,0,43,6,43,27,69,77,129,85,110,99,114,62,57,67,60,56,49,61,55,62,53,66,85,44,76,48,60,19,19,19,43,28,20,0,7,0,32,18,8,10,14,14,15,14,14,14,14,9,30,0,0,-8,-8,-8,-8,-8,-8,-8,-8,-8,-8,-8,0,0,0,0,0,0,0,0,0,0,0,0,0,0,0,0,0,0,0,0,0,0]} 1. d4 {[%emt 0:00:05]} Nf6 {[%emt 0:03:23]} 2. c4 {[%emt 0:00:11]} e6 {[%emt 0:00:05]} 3. Nc3 {[%emt 0:00:13]} Bb4 {[%emt 0:00:13]} 4. Qc2 {[%emt 0:00:08]} O-O {[%emt 0:00:19]} 5. e4 {[%emt 0:00:08]} d5 {[%emt 0:00:31]} 6. e5 {[%emt 0:00:07]} Ne4 {[%emt 0:00:06]} 7. Bd3 {[%emt 0:00:13]} c5 $1 {[%emt 0:00:31]} 8. Nf3 {[%emt 0:00:09] E32: Nimzo-Indian: Classical (4 Qc2): 4...0-0.} cxd4 {[%emt 0:01:25]} 9. Nxd4 {[%emt 0:00:07]} Nd7 {[%emt 0:00:38][%cal Bb8d7,Bd7c5,Bc5a4][%mdl 32]} 10. Bf4 {[%emt 0:00:09]} Ndc5 {[%emt 0:00:43]} 11. O-O {[%emt 0:00:39][%cal Rd3e4]} Bxc3 {[%emt 0:00:38]} 12. bxc3 {[%emt 0:00:09]} Bd7 {[%emt 0:04:02] 12...Nxd3 is the modern continuation.} 13. Be2 {[%emt 0:04:21] Black must now prevent f3.} Na4 {[%emt 0:01:40]} 14. cxd5 {[%emt 0:00:20]} exd5 {[%emt 0:00:12]} 15. f3 {[%emt 0:00:08] 15.Bd3 is not played anymore.} Nexc3 {[%emt 0:02:21]} 16. Bd3 {[%emt 0:00:13]} Kh8 {[%emt 0:05:04]} 17. Qd2 {[%emt 0:07:25][%cal Oe5e6][%mdl 1024] [#] White has compensation.} ({Don't blunder} 17. Bxh7 $2 Qh4 18. Bf5 Qxf4 $19) 17... Re8 $146 {[%emt 0:20:10]} ({Predecessor:} 17... Rc8 18. Kh1 b5 19. Bc2 b4 20. Bg5 Qb6 21. Qd3 Qg6 22. Qd2 Qb6 23. Qd3 {½-½ (23) Daneshvar,B (2327)-Quparadze,G (2462) Rasht 2020}) 18. Kh1 {[%emt 0:04:42]} Qb6 {[%emt 0:06:01]} 19. Bc2 {[%emt 0:00:55]} Qa6 {[%emt 0:00:14]} (19... Rac8 $142) 20. Qf2 {[%emt 0:02:12][%cal Oe5e6] aiming for e6!} Kg8 {[%emt 0:12:06]} 21. Qh4 {[%emt 0:02:44]} h6 {[%emt 0:00:10] [#]} 22. e6 {[%emt 0:00:19]} ({White should try} 22. g4 $1 $16 {[%cal Rg4g5]}) 22... Bxe6 $14 {[%emt 0:00:22] [#]} 23. Bxh6 $1 {[%emt 0:00:29][%mdl 64] Demolition} gxh6 {[%emt 0:00:11]} 24. Qxh6 {[%emt 0:00:07] Bh7+ would kill now.} Bf5 {[%emt 0:05:23] Against Bh7+} 25. Qxa6 {[%emt 0:00:13]} bxa6 {[%emt 0:00:04]} 26. Bxa4 {[%emt 0:00:43]} Nxa4 {[%emt 0:00:30]} 27. Nxf5 {[%emt 0:00:04]} Re5 {[%emt 0:18:25]} 28. Nd4 {[%emt 0:00:24]} Rc8 {[%emt 0:00:11]} 29. Rf2 {[%emt 0:01:14]} Rc3 {[%emt 0:03:22]} 30. Rd2 {[%emt 0:00:40]} Nb6 {[%emt 0:00:24]} 31. Rdd1 {[%emt 0:03:40]} a5 {[%emt 0:02:57]} 32. Kg1 {[%emt 0:00:46]} Nc4 {[%emt 0:01:45]} 33. Kf2 {[%emt 0:22:03]} a4 {[%emt 0:04:09]} 34. Re1 {[%emt 0:08:21]} f6 {[%emt 0:01:57]} 35. h4 {[%emt 0:04:21]} (35. Rec1 $5 {[%cal Rc1c3]} Rd3 36. Rd1 $11) 35... Nb2 {[%emt 0:03:39] Hoping for ...Nd3+.} 36. Kg3 {[%emt 0:00:56]} Rc4 $1 {[%emt 0:00:20]} 37. Rxe5 {[%emt 0:09:49]} fxe5 $11 {[%emt 0:00:03][%mdl 4096] Endgame [#] KRN-KRN} 38. Rb1 $1 {[%emt 0:00:15]} a3 {[%emt 0:03:43]} 39. Nb5 {[%emt 0:00:02][%csl LRa3,LRa7]} Rc2 {[%emt 0:00:14]} 40. Nxa3 {[%emt 0:00:33]} Re2 {[%emt 0:00:01]} 41. Rc1 {[%emt 0:10:09] And now Rc2 would win.} (41. Nb5 $5 {[%cal Rb5c3]} d4 42. Nxa7 $14) 41... d4 $1 {[%emt 0:00:01] The position is equal.} 42. Rc2 {[%emt 0:04:18]} Rxc2 {[%emt 0:00:06]} 43. Nxc2 {[%emt 0:00:05] KN-KN} d3 {[%emt 0:00:02]} 44. Ne3 {[%emt 0:00:11] Kf2 is the strong threat.} d2 {[%emt 0:00:03]} 45. Kg4 {[%emt 0:00:57]} d1=Q {[%emt 0:00:35]} 46. Nxd1 {[%emt 0:00:29]} Nxd1 {[%emt 0:00:04] KN-KP} 47. Kf5 {[%emt 0:00:52]} Ne3+ {[%emt 0:00:22]} 48. Kxe5 {[%emt 0:00:09]} Nxg2 {[%emt 0:00:02] KN-K3P} 49. h5 {[%emt 0:00:31]} Kg7 {[%emt 0:05:33]} 50. a4 {[%emt 0:00:24]} Kh6 {[%emt 0:00:00]} 51. a5 {[%emt 0:00:46]} a6 {[%emt 0:00:00]} 52. Kd4 {[%emt 0:00:40]} Kxh5 {[%emt 0:00:00] KN-KPP} 53. Kc5 {[%emt 0:00:15]} Kg5 {[%emt 0:00:00]} 54. Kb6 {[%emt 0:00:07]} Ne3 55. Kxa6 Nc4 {[%emt 0:00:00]} 56. Kb5 {[%emt 0:00:32]} Nxa5 {[%emt 0:00:00]} 57. Kxa5 {[%emt 0:00:06]} Kf4 {[%emt 0:00:00]} 58. Kb4 {[%emt 0:00:19] Weighted Error Value: White=0.09 (flawless) /Black=0.07 (flawless)} 1/2-1/2

[Event "15th Tashkent Open Agzamov 2022"]
[Site "Tashkent"]
[Date "2022.05.10"]
[Round "9.1"]
[White "Indjic, Aleksandar"]
[Black "Suleymenov, Alisher"]
[Result "1/2-1/2"]
[ECO "D27"]
[WhiteElo "2621"]
[BlackElo "2445"]
[Annotator "TA"]
[PlyCount "76"]
[EventDate "2022.05.05"]
[EventType "swiss"]
[EventCountry "UZB"]
[SourceTitle "playchess.com"]
[Source "ChessBase"]
[SourceQuality "1"]
[TimeControl "5400+30"]

{[%evp 12,76,25,23,27,16,31,14,34,12,25,0,28,0,2,-8,-1,0,0,-5,-7,-9,-10,-8,-7,-356,-4,0,0,0,0,-4,-6,-7,0,0,0,0,0,0,0,0,8,-12,-7,-9,-7,-20,0,-19,-7,-7,0,-1,0,-12,0,-11,0,0,0,0,0,0,0,0,0]} 1. d4 {[%emt 0:01:13]} d5 {[%emt 0:00:10]} 2. Nf3 {[%emt 0:00:40]} Nf6 {[%emt 0:00:06]} 3. c4 {[%emt 0:01:26]} dxc4 {[%emt 0:00:07]} 4. e3 {[%emt 0:00:46]} e6 {[%emt 0:00:08]} 5. Bxc4 {[%emt 0:01:17]} c5 {[%emt 0:00:05]} 6. O-O {[%emt 0:02:09]} a6 {[%emt 0:00:06]} 7. b3 {[%emt 0:01:59]} Nbd7 {[%emt 0:00:10] D27: Queen's Gambit Accepted: Classical main line: 7 e4!? and 7 a4.} 8. Be2 {[%emt 0:00:40]} Be7 {[%emt 0:09:13]} 9. Bb2 {[%emt 0:00:50]} O-O {[%emt 0:00:10]} 10. Nbd2 {[%emt 0:03:09]} b6 {[%emt 0:01:03]} 11. dxc5 {[%emt 0:04:08]} Bxc5 {[%emt 0:03:06] [#]} 12. Qb1 $146 {[%emt 0:09:27]} ({Predecessor:} 12. a3 Bb7 13. b4 Bd6 14. Nc4 Bc7 15. Rc1 b5 16. Nce5 Rc8 17. Nxd7 Qxd7 18. Qxd7 Nxd7 19. Rfd1 Nb6 20. Bd4 Rfd8 21. Nd2 Na4 22. g3 e5 23. Ba1 {½-½ (24) Walczak,P (2504)-Mayer,R (2486) ICCF email 2018}) 12... Bb7 {[%emt 0:09:36]} 13. Bd3 {[%emt 0:04:21]} Qe7 {[%emt 0:04:16]} 14. Ne4 {[%emt 0:00:31]} h6 {[%emt 0:10:37]} 15. Rd1 {[%emt 0:08:38]} Ba3 {[%emt 0:05:14]} 16. Nxf6+ {[%emt 0:01:47]} Nxf6 {[%emt 0:00:08]} 17. Bxf6 {[%emt 0:00:05]} Qxf6 {[%emt 0:00:15]} 18. Bh7+ {[%emt 0:00:07]} Kh8 {[%emt 0:00:03]} 19. Be4 {[%emt 0:00:06] The position is equal.} Qe7 {[%emt 0:05:04]} 20. Bxb7 {[%emt 0:11:08]} (20. Ne5 {with more complications.} Rad8 21. Bxb7 Qxb7 22. Qc2) 20... Qxb7 {[%emt 0:00:04]} 21. b4 {[%emt 0:00:38] [#] Black must now prevent Qb3.} Qe7 {[%emt 0:02:05]} 22. b5 {[%emt 0:01:42]} Qb4 {[%emt 0:12:36]} 23. bxa6 {[%emt 0:04:53]} Qxb1 {[%emt 0:00:27]} 24. Raxb1 {[%emt 0:00:07]} Rxa6 {[%emt 0:00:05]} 25. Rd7 {[%emt 0:01:22]} Bc5 {[%emt 0:01:24]} 26. Rb2 {[%emt 0:00:57]} f6 {[%emt 0:02:16]} 27. Nh4 {[%emt 0:03:11] [#] aiming for Ng6+.} Kh7 {[%emt 0:02:22] Prevents Ng6.} 28. g3 {[%emt 0:01:26]} Rfa8 {[%emt 0:00:34]} 29. Ng2 {[%emt 0:00:13]} R6a7 {[%emt 0:01:39]} 30. Rdd2 {[%emt 0:05:05]} g5 {[%emt 0:00:45]} 31. Ne1 {[%emt 0:00:09]} Kg6 {[%emt 0:01:29]} 32. Nd3 {[%emt 0:00:07]} e5 {[%emt 0:02:34]} 33. Rbc2 {[%emt 0:07:23]} h5 {[%emt 0:00:51]} 34. h3 {[%emt 0:00:36]} Ra4 {[%emt 0:04:04]} 35. Kg2 {[%emt 0:00:08]} R8a7 {[%emt 0:01:31]} 36. Nxc5 {[%emt 0:06:17]} bxc5 {[%emt 0:00:17]} 37. Rxc5 {[%emt 0:00:04]} Rxa2 {[%emt 0:00:06]} 38. Rxa2 {[%emt 0:00:03]} Rxa2 {[%emt 0:00:05] Weighted Error Value: White=0.06 (flawless) /Black=0.05 (flawless)} 1/2-1/2

[Event "15th Tashkent Open Agzamov 2022"]
[Site "Tashkent"]
[Date "2022.05.10"]
[Round "9.2"]
[White "Sindarov, Javokhir"]
[Black "Abdurakhmonov, Mukhammadali"]
[Result "1-0"]
[ECO "B51"]
[WhiteElo "2609"]
[BlackElo "2308"]
[Annotator "TA"]
[PlyCount "77"]
[EventDate "2022.05.05"]
[EventType "swiss"]
[EventCountry "UZB"]
[SourceTitle "playchess.com"]
[Source "ChessBase"]
[SourceQuality "1"]
[TimeControl "5400+30"]

{[%evp 9,77,13,18,8,20,-8,0,0,0,6,20,0,25,31,34,21,78,64,70,46,40,34,31,37,37,26,29,27,31,22,37,7,8,9,92,80,90,87,100,100,99,102,97,100,128,124,96,104,65,75,254,243,227,229,209,215,342,350,475,469,541,543,550,545,545,532,644,612,850,833]} 1. e4 {[%emt 0:04:26]} c5 {[%emt 0:00:15]} 2. Nf3 {[%emt 0:01:01]} d6 {[%emt 0:00:46]} 3. Bb5+ {[%emt 0:00:39]} Nd7 {[%emt 0:04:40]} 4. d4 {[%emt 0:00:41]} cxd4 {[%emt 0:00:17]} 5. Nxd4 {[%emt 0:00:15]} Ngf6 {[%emt 0:01:34]} 6. O-O {[%emt 0:01:15][%cal Bh1f1,Bf1e1,Be1e6][%mdl 32] B51: Sicilian: Moscow Variation (3 Bb5+) without 3...Bd7.} a6 {[%emt 0:09:05]} 7. Ba4 {[%emt 0:05:27]} Nxe4 {[%emt 0:01:38]} 8. c4 {[%emt 0:04:58] The position is equal.} e6 {[%emt 0:04:42]} 9. Re1 {[%emt 0:04:06]} Nec5 {[%emt 0:00:30]} (9... Qh4 $2 10. g3 Nxf2 11. gxh4 $16) 10. Nc3 {[%emt 0:02:48]} Be7 {[%emt 0:08:42]} 11. Bxd7+ {[%emt 0:10:27]} Nxd7 {[%emt 0:00:29]} 12. Rxe6 $1 {[%emt 0:04:32][%cal Oc3d5]} O-O {[%emt 0:23:54]} (12... fxe6 $2 13. Nxe6 Qa5 14. Nd5 $18) (12... Ne5 $11 {keeps the balance.} 13. Rxe7+ (13. Qa4+ Bd7 $17) 13... Qxe7) 13. Re1 $16 {[%emt 0:09:24] 0x0.0019eb54afd9dp-1022s more active pieces. The black rooks are badly placed.} Nb6 {[%emt 0:01:17] [#]} 14. Qb3 $146 {[%emt 0:04:43]} ({Predecessor:} 14. b3 d5 15. Nxd5 Nxd5 16. cxd5 Bb4 17. Bd2 Bxd2 18. Qxd2 Qxd5 19. Qf4 Bd7 20. h4 {½-½ (35) Ter Sahakyan,S (2551)-Korobov,A (2718) Riga 2021}) 14... Bd7 {[%emt 0:07:17]} 15. Be3 {[%emt 0:04:27] And now Nf3 would win.} Rc8 {[%emt 0:00:30] [#]} 16. Nf5 $1 {[%emt 0:01:33]} Bxf5 {[%emt 0:04:30]} 17. Bxb6 {[%emt 0:00:09]} Qd7 {[%emt 0:00:04]} 18. Nd5 {[%emt 0:04:07]} Be6 {[%emt 0:00:45]} 19. Bd4 {[%emt 0:05:11] Strongly threatening Qg3.} Bd8 {[%emt 0:01:23]} 20. Rad1 {[%emt 0:02:21]} Bxd5 {[%emt 0:05:50]} 21. cxd5 {[%emt 0:00:06]} b5 {[%emt 0:03:48]} (21... Ba5 $11 {remains equal.}) 22. Qa3 $40 {[%emt 0:03:45][%mdl 128] White goes for the king.} Bg5 {[%emt 0:07:40]} 23. Qxa6 {[%emt 0:06:23]} Ra8 {[%emt 0:00:12]} 24. Qc6 {[%emt 0:00:06]} Qxc6 {[%emt 0:00:14]} 25. dxc6 {[%emt 0:00:04] c7 is the strong threat.} Rfc8 {[%emt 0:02:18]} 26. h4 {[%emt 0:02:27]} Bxh4 {[%emt 0:06:30]} 27. g3 {[%emt 0:00:21]} Bg5 {[%emt 0:00:01]} 28. f4 {[%emt 0:00:09]} Bh6 {[%emt 0:00:04]} 29. Rc1 {[%emt 0:00:03] aiming for Re7.} g6 $2 {[%emt 0:00:53] [#] This costs Black the game.} (29... g5 $16) 30. Re7 $1 $18 {[%emt 0:03:43]} Bg7 {[%emt 0:01:52]} 31. Bxg7 {[%emt 0:00:17]} Kxg7 {[%emt 0:00:06][%mdl 4096] Endgame [#] KRR-KRR} 32. Rd7 $1 {[%emt 0:02:37] Hoping for c7.} Rxa2 {[%emt 0:01:43]} (32... Ra4 {keeps fighting.} 33. b3 (33. Rxd6 Rc4 $16) 33... Ra6) 33. c7 {[%emt 0:00:07]} Raa8 {[%emt 0:01:47]} 34. Kf2 {[%emt 0:00:49] White is clearly winning.} Kf6 {[%emt 0:01:34]} 35. Rc6 {[%emt 0:00:06]} Kg7 {[%emt 0:00:29]} 36. Ke3 {[%emt 0:00:26]} Re8+ {[%emt 0:00:36]} 37. Kd4 {[%emt 0:00:29]} Rac8 {[%emt 0:00:26]} 38. Kd5 {[%emt 0:00:20]} Re2 {[%emt 0:00:36]} 39. Rd8 {[%emt 0:00:18] Weighted Error Value: White=0.04 (flawless) /Black=0.29 (precise)} 1-0

[Event "15th Tashkent Open Agzamov 2022"]
[Site "Tashkent"]
[Date "2022.05.10"]
[Round "9.3"]
[White "Romanov, Evgeny"]
[Black "Sanal, Vahap"]
[Result "1/2-1/2"]
[ECO "C50"]
[WhiteElo "2573"]
[BlackElo "2575"]
[Annotator "TA"]
[PlyCount "41"]
[EventDate "2022.05.05"]
[EventType "swiss"]
[EventCountry "UZB"]
[SourceTitle "playchess.com"]
[Source "ChessBase"]
[SourceQuality "1"]
[TimeControl "5400+30"]

{[%evp 10,41,24,18,13,9,14,0,14,11,6,8,23,23,25,16,23,0,0,-10,8,-16,-23,-14,0,0,0,-19,0,-12,0,-15,0,-7]} 1. e4 {[%emt 0:00:05]} e5 {[%emt 0:00:52]} 2. Nf3 {[%emt 0:00:24]} Nc6 {[%emt 0:00:08]} 3. Bc4 {[%emt 0:00:09]} Bc5 {[%emt 0:00:11]} 4. d3 {[%emt 0:00:32]} Nf6 {[%emt 0:00:40]} 5. Nc3 {[%emt 0:00:30]} d6 {[%emt 0:01:19]} 6. Na4 {[%emt 0:00:51]} Bb6 {[%emt 0:01:28] C50: Hungarian Defence and Giuoco Pianissimo.} 7. a3 {[%emt 0:00:37]} h6 {[%emt 0:01:50]} 8. h3 {[%emt 0:01:28] 8.0-0 is a critical line.} Qe7 {[%emt 0:05:31] [#]} 9. b4 $146 {[%emt 0:04:07]} ({Predecessor:} 9. Bd2 Ba5 10. b4 Bb6 11. Bb5 Bd7 12. c4 Bd4 13. Nc3 Bxc3 14. Bxc3 Nd8 15. Bxd7+ Qxd7 {½-½ (71) Domarovsky,S (1894)-Emelianov,S (1909) Irkutsk 2017}) 9... Be6 {[%emt 0:12:19]} 10. Bxe6 {[%emt 0:00:56]} fxe6 {[%emt 0:00:09]} 11. c3 {[%emt 0:04:48]} Qf7 {[%emt 0:01:33]} 12. Qe2 {[%emt 0:08:27]} O-O {[%emt 0:05:24]} 13. Nxb6 {[%emt 0:04:01]} axb6 {[%emt 0:00:07]} 14. Nh2 {[%emt 0:01:56]} Nh5 {[%emt 0:01:41]} 15. g3 {[%emt 0:01:40]} b5 {[%emt 0:03:06]} 16. O-O {[%emt 0:04:52]} Kh7 {[%emt 0:03:23] The position is equal.} 17. Bb2 {[%emt 0:03:03]} Qg6 {[%emt 0:02:20]} 18. Qg4 {[%emt 0:01:29] Inhibits Nf4.} Qe8 {[%emt 0:01:41]} 19. Qe2 {[%emt 0:02:42]} Qg6 {[%emt 0:00:23] Hoping for ...Nf4.} 20. Qg4 {[%emt 0:00:47] Against Nf4} Qe8 {[%emt 0:00:07]} 21. Qe2 {[%emt 0:06:05] An interesting draw.  Weighted Error Value: White=0.07 (flawless) /Black=0.07 (flawless)} 1/2-1/2

[Event "15th Tashkent Open Agzamov 2022"]
[Site "Tashkent"]
[Date "2022.05.10"]
[Round "9.4"]
[White "Iskandarov, Misratdin"]
[Black "Asadli, Vugar"]
[Result "1/2-1/2"]
[ECO "A13"]
[WhiteElo "2601"]
[BlackElo "2578"]
[Annotator "TA"]
[PlyCount "34"]
[EventDate "2022.05.05"]
[EventType "swiss"]
[EventCountry "UZB"]
[SourceTitle "playchess.com"]
[Source "ChessBase"]
[SourceQuality "1"]
[TimeControl "5400+30"]

{[%evp 10,34,0,1,11,0,29,-13,2,7,19,22,41,-17,-11,-36,-9,-24,-16,-20,-10,-29,-31,-29,-33,-31,-28]} 1. Nf3 {[%emt 0:02:02]} Nf6 {[%emt 0:01:31]} 2. c4 {[%emt 0:00:37]} e6 {[%emt 0:00:28]} 3. g3 {[%emt 0:01:17]} d5 {[%emt 0:00:14]} 4. Bg2 {[%emt 0:00:06]} dxc4 {[%emt 0:00:05]} 5. O-O {[%emt 0:02:38]} Nbd7 {[%emt 0:02:55]} 6. Qc2 {[%emt 0:11:59]} Nb6 {[%emt 0:11:12] A13: English Opening: 1...e6.} 7. Rd1 {[%emt 0:03:46] [#]} Nfd5 $146 {[%emt 0:06:30]} ({Predecessor:} 7... Bd6 8. b3 cxb3 9. axb3 Nbd5 10. Na3 O-O 11. Bb2 c6 12. Ng5 Re8 13. d4 Bf8 14. Nc4 {½-½ (29) Lecroq,M (2594)-Churkin,M (2496) ICCF email 2017}) 8. Nc3 {[%emt 0:04:22]} Bd7 {[%emt 0:06:32] The position is equal.} 9. Ne5 {[%emt 0:12:57]} Bd6 {[%emt 0:04:32]} 10. Nxd7 {[%emt 0:03:16]} Qxd7 {[%emt 0:00:11]} ({Much less strong is} 10... Kxd7 11. Nxd5 exd5 12. d3 $16) 11. a3 {[%emt 0:11:53]} (11. Nxd5 $14 exd5 12. a4) 11... O-O $11 {[%emt 0:04:09]} 12. d3 {[%emt 0:01:25]} Nxc3 {[%emt 0:02:01]} 13. Qxc3 {[%emt 0:00:06]} Qa4 {[%emt 0:00:36]} 14. Be3 {[%emt 0:07:14]} Nd5 {[%emt 0:01:15]} 15. Qxc4 {[%emt 0:00:40]} (15. Bxd5 $5 exd5 16. dxc4 $15) 15... Qxc4 {[%emt 0:00:15]} 16. dxc4 {[%emt 0:00:04]} Nxe3 {[%emt 0:00:07]} 17. fxe3 {[%emt 0:00:04]} Rad8 {[%emt 0:00:06] Weighted Error Value: White=0.16 (very precise) /Black=0.09 (flawless)} 1/2-1/2